bitfinex/quotes_BTCUSD_20251124
["timestamp","ask_amount","ask_price","bid_price","bid_amount"]
[1764006001754,0.00132607,88048.0,88047.0,0.01724]
[1764006001956,0.10832607,88048.0,88047.0,0.01]
[1764006002134,0.06762267,88048.0,88047.0,0.01]
[1764006002335,0.12890267,88048.0,88047.0,0.01]
[1764006002918,0.12790267,88048.0,88047.0,0.01]
[1764006003125,0.06662267,88048.0,88047.0,0.01]
[1764006003325,0.00032607,88048.0,88047.0,0.01]
[1764006003724,0.00132607,88048.0,88047.0,0.01]
[1764006004066,0.00132607,88048.0,88047.0,0.07976299]
[1764006004472,0.00259512,88048.0,88047.0,0.07976299]
[1764006004800,0.00259512,88048.0,88047.0,0.74024]
[1764006005632,0.00259512,88048.0,88047.0,0.41724]
[1764006005869,0.00159512,88048.0,88047.0,0.41824]
[1764006006231,0.00159512,88048.0,88047.0,0.01824]
[1764006007307,0.00159512,88048.0,88047.0,0.01724]
[1764006007513,0.00159512,88048.0,88047.0,0.08076299]
[1764006007761,0.00159512,88048.0,88047.0,2.40376299]
[1764006007925,0.00028199,88048.0,88047.0,2.80376299]
[1764006008534,9.545e-05,88048.0,88047.0,2.80276299]
[1764006008831,9.545e-05,88048.0,88047.0,2.80376299]
[1764006009187,2.17e-06,88048.0,88047.0,2.80476299]
[1764006009609,2.17e-06,88048.0,88047.0,0.79476299]
[1764006009813,2.17e-06,88048.0,88047.0,0.80476299]
[1764006010233,2.17e-06,88048.0,88047.0,0.80376299]
[1764006010787,2.17e-06,88048.0,88047.0,0.80576299]
[1764006011258,2.17e-06,88048.0,88047.0,0.80376299]
[1764006011497,2.17e-06,88048.0,88047.0,0.80476299]
[1764006011970,2.17e-06,88048.0,88047.0,0.8083141]
[1764006012391,2.17e-06,88048.0,88047.0,0.8093141]
[1764006014166,2.17e-06,88048.0,88047.0,0.8083141]
[1764006014602,2.17e-06,88048.0,88047.0,0.8093141]
[1764006015096,2.17e-06,88048.0,88047.0,0.8073141]
[1764006015899,2.17e-06,88048.0,88047.0,0.8083141]
[1764006016099,2.17e-06,88048.0,88047.0,0.8073141]
[1764006016247,2.17e-06,88048.0,88047.0,0.8083141]
[1764006016446,2.17e-06,88048.0,88047.0,2.8093141]
[1764006016650,2.17e-06,88048.0,88047.0,2.8073141]
[1764006016861,2.17e-06,88048.0,88047.0,2.83523303]
[1764006017073,2.17e-06,88048.0,88047.0,2.83885485]
[1764006017517,2.17e-06,88048.0,88047.0,2.8093141]
[1764006017724,2.17e-06,88048.0,88047.0,2.8073141]
[1764006017922,2.17e-06,88048.0,88047.0,2.8020741]
[1764006018170,2.17e-06,88048.0,88047.0,2.8103141]
[1764006018363,2.17e-06,88048.0,88047.0,2.8093141]
[1764006018808,2.17e-06,88048.0,88047.0,2.8103141]
[1764006019011,2.17e-06,88048.0,88047.0,0.42479111]
[1764006019211,0.00039117,88048.0,88047.0,0.42479111]
[1764006019500,0.00039117,88048.0,88047.0,0.4873141]
[1764006019655,0.00039117,88048.0,88047.0,0.4853141]
[1764006019868,0.00039117,88048.0,88047.0,0.8083141]
[1764006020066,0.00117877,88050.0,88049.0,0.07252299]
[1764006020266,0.00117877,88050.0,88049.0,0.19835816]
[1764006020860,0.00117877,88050.0,88049.0,2.19835816]
[1764006021064,0.00117877,88050.0,88049.0,2.49864354]
[1764006021701,0.00117877,88050.0,88049.0,2.49964354]
[1764006022145,0.00117877,88050.0,88049.0,2.49864354]
[1764006022381,0.00117877,88050.0,88049.0,2.50064354]
[1764006022592,0.00117877,88050.0,88049.0,2.90164354]
[1764006023144,0.00117877,88050.0,88049.0,2.90064354]
[1764006023451,0.00117877,88050.0,88049.0,2.90264354]
[1764006024205,0.00117877,88050.0,88049.0,2.90988354]
[1764006025100,0.00117877,88050.0,88049.0,2.90788354]
[1764006025602,0.00117877,88050.0,88049.0,2.90688354]
[1764006026035,0.00117877,88050.0,88049.0,2.90788354]
[1764006026435,0.00117877,88050.0,88049.0,2.90688354]
[1764006026751,0.00117877,88050.0,88049.0,2.90888354]
[1764006028018,0.00020962,88050.0,88049.0,2.90888354]
[1764006029007,0.00020962,88050.0,88049.0,0.90888354]
[1764006029728,0.00020962,88050.0,88049.0,0.83912055]
[1764006029935,0.00020962,88050.0,88049.0,0.84636055]
[1764006030353,0.00020962,88050.0,88049.0,0.90688354]
[1764006030771,0.00020962,88050.0,88049.0,0.90588354]
[1764006030982,0.00020962,88050.0,88049.0,2.90688354]
[1764006032491,3.744e-05,88050.0,88049.0,2.90688354]
[1764006032710,3.744e-05,88050.0,88049.0,2.90788354]
[1764006032914,0.0205766,88101.0,88052.0,0.38552299]
[1764006033125,0.02321373,88102.0,88101.0,0.01]
[1764006034290,0.02321373,88102.0,88101.0,0.01011626]
[1764006034666,0.02421373,88102.0,88101.0,0.01011626]
[1764006035952,0.02421373,88102.0,88101.0,0.00989626]
[1764006037157,0.04542,88108.0,88107.0,0.00978]
[1764006037601,0.13111231,88108.0,88104.0,0.00978]
[1764006037800,0.02126231,88107.0,88104.0,0.00978]
[1764006038211,0.323,88124.0,88105.0,0.04246]
[1764006038330,0.02125862,88123.0,88116.0,0.00978]
[1764006038538,0.02125862,88122.0,88116.0,0.00978]
[1764006038734,0.06443,88117.0,88116.0,0.00978]
[1764006039028,0.06443,88117.0,88101.0,0.00011626]
[1764006039029,0.08568862,88117.0,88101.0,0.00011626]
[1764006039200,0.001,88108.0,88104.0,0.00978]
[1764006039411,0.02125713,88107.0,88104.0,0.00978]
[1764006039626,0.06443,88105.0,88104.0,0.00978]
[1764006039824,0.08568713,88105.0,88104.0,0.00978]
[1764006040248,0.02125713,88105.0,88104.0,0.1714]
[1764006040437,0.04595452,88125.0,88104.0,0.16162]
[1764006040639,0.02125386,88124.0,88120.0,0.00978]
[1764006040816,0.02125386,88124.0,88107.0,0.06408]
[1764006040817,0.002,88122.0,88121.0,0.00978]
[1764006041014,0.11173386,88122.0,88121.0,0.00978]
[1764006041400,0.33869194,88122.0,88121.0,0.00978]
[1764006041605,0.11173386,88122.0,88113.0,0.00978]
[1764006041809,0.22697868,88114.0,88113.0,0.00978]
[1764006042008,0.24823254,88114.0,88113.0,0.00978]
[1764006042548,0.02125386,88114.0,88113.0,0.00978]
[1764006043184,0.02125386,88114.0,88113.0,0.07386]
[1764006043700,0.22897868,88114.0,88113.0,0.00978]
[1764006043843,0.22897868,88114.0,88113.0,0.16859]
[1764006043844,0.22697868,88114.0,88113.0,0.16859]
[1764006044037,0.22697868,88114.0,88113.0,0.00978]
[1764006044253,0.02224958,88114.0,88107.0,0.00724]
[1764006044453,0.001,88114.0,88113.0,0.06979]
[1764006044656,0.22694005,88129.0,88127.0,0.00978]
[1764006044859,0.25041671,88128.0,88127.0,0.00978]
[1764006045692,0.31291671,88128.0,88127.0,0.00978]
[1764006046098,0.22696323,88120.0,88119.0,0.00978]
[1764006046348,0.27987139,88120.0,88119.0,0.00978]
[1764006046560,0.27987139,88120.0,88107.0,0.00724]
[1764006046561,0.22699414,88108.0,88107.0,0.01702]
[1764006046838,0.323,88131.0,88108.0,0.0988]
[1764006047132,0.323,88131.0,88108.0,0.00978]
[1764006047133,0.22699156,88109.0,88108.0,0.00978]
[1764006047700,0.2279452,88128.0,88121.0,0.00978]
[1764006047901,0.02124229,88127.0,88107.0,0.00724]
[1764006048241,0.23833843,88110.0,88109.0,0.00978]
[1764006049552,0.22697417,88116.0,88115.0,0.00978]
[1764006049751,0.01134803,88121.0,88115.0,0.00978]
[1764006049955,0.23830881,88121.0,88120.0,0.00978]
[1764006050133,0.22696838,88118.0,88117.0,0.04246]
[1764006050334,0.22696838,88118.0,88117.0,0.05224]
[1764006051348,0.23830056,88124.0,88123.0,0.00978]
[1764006052453,0.22695035,88125.0,88123.0,0.00978]
[1764006052637,0.22695035,88125.0,88124.0,0.0903]
[1764006052835,0.22694792,88126.0,88125.0,0.00978]
[1764006053246,0.22911207,88126.0,88125.0,0.16623]
[1764006053533,0.00216415,88126.0,88125.0,0.16623]
[1764006054191,0.00216415,88126.0,88125.0,0.08317]
[1764006054396,0.23011192,88126.0,88125.0,0.00978]
[1764006054700,0.23011192,88126.0,88125.0,0.01702]
[1764006055278,0.32088192,88126.0,88125.0,0.00978]
[1764006055483,0.31988192,88126.0,88125.0,0.01702]
[1764006055701,0.27445192,88126.0,88125.0,0.01702]
[1764006055914,0.23011192,88126.0,88125.0,0.08317]
[1764006056250,0.23011192,88126.0,88125.0,0.17347]
[1764006056634,0.23011192,88126.0,88125.0,0.01702]
[1764006056844,0.27545192,88126.0,88125.0,0.01702]
[1764006057163,0.27445192,88126.0,88125.0,0.01702]
[1764006057337,0.22911192,88126.0,88125.0,0.01702]
[1764006057588,0.00316415,88126.0,88125.0,0.01702]
[1764006057768,0.23011192,88126.0,88125.0,0.01702]
[1764006057914,0.00316415,88126.0,88125.0,0.17347]
[1764006058116,0.00316415,88126.0,88125.0,0.01702]
[1764006058316,0.23011192,88126.0,88125.0,0.01702]
[1764006058848,0.00316415,88126.0,88125.0,0.00978]
[1764006059008,0.22941192,88126.0,88125.0,0.00978]
[1764006059983,0.00246415,88126.0,88125.0,0.07593]
[1764006060182,0.22941192,88126.0,88125.0,0.00978]
[1764006060393,0.22941192,88126.0,88125.0,0.16623]
[1764006060619,0.00246415,88126.0,88125.0,0.16623]
[1764006060824,0.22941192,88126.0,88125.0,0.00978]
[1764006061160,0.27841192,88126.0,88125.0,0.00978]
[1764006061484,0.22698641,88111.0,88102.0,0.0903]
[1764006061692,0.22700444,88104.0,88103.0,0.00978]
[1764006062101,0.01134944,88110.0,88103.0,0.00978]
[1764006062102,0.04534,88116.0,88104.0,0.04246]
[1764006062310,0.23832748,88115.0,88114.0,0.07593]
[1764006062527,0.23832748,88115.0,88114.0,0.00978]
[1764006062961,0.22692633,88135.0,88114.0,0.17914786]
[1764006063194,0.05668571,88139.0,88114.0,0.17914786]
[1764006063195,0.01134674,88131.0,88116.0,0.06615]
[1764006063396,0.23829006,88128.0,88127.0,0.00978]
[1764006063557,0.23829006,88128.0,88127.0,0.01702]
[1764006063944,0.01134687,88130.0,88127.0,0.17347]
[1764006064140,0.23828434,88130.0,88129.0,0.00978]
[1764006064442,0.22696813,88119.0,88117.0,0.00724]
[1764006064682,0.011347,88129.0,88126.0,3.73898856]
[1764006064683,0.22694262,88128.0,88126.0,3.73898856]
[1764006064846,0.2269452,88127.0,88126.0,3.73898856]
[1764006065041,0.2269452,88127.0,88126.0,3.74876856]
[1764006065250,0.01134687,88130.0,88128.0,0.00978]
[1764006065459,0.001,88131.0,88129.0,0.11585]
[1764006065667,0.001,88131.0,88130.0,0.07593]
[1764006065866,0.001,88131.0,88130.0,0.16623]
[1764006066067,0.01134571,88139.0,88134.0,0.06615]
[1764006066288,0.01134597,88137.0,88134.0,0.06615]
[1764006066527,0.01134597,88137.0,88134.0,0.16623]
[1764006066528,0.2269246,88135.0,88134.0,0.16623]
[1764006066701,0.2269246,88135.0,88134.0,0.0903]
[1764006066902,0.01134597,88137.0,88134.0,0.16623]
[1764006067144,0.22691945,88137.0,88136.0,0.06615]
[1764006067363,0.22691945,88137.0,88136.0,0.00978]
[1764006068126,0.22691945,88137.0,88136.0,0.01702]
[1764006068782,0.22791945,88137.0,88136.0,0.01702]
[1764006069154,0.22691945,88137.0,88136.0,0.01702]
[1764006069360,0.22791945,88137.0,88136.0,0.01702]
[1764006070068,0.22961945,88137.0,88136.0,0.01702]
[1764006070273,0.22791945,88137.0,88136.0,0.01702]
[1764006070951,0.32576945,88137.0,88136.0,0.01702]
[1764006071554,0.22961945,88137.0,88136.0,0.01702]
[1764006071760,0.22791945,88137.0,88136.0,0.01702]
[1764006071986,0.22771945,88137.0,88136.0,0.01702]
[1764006073898,0.32400945,88137.0,88136.0,0.00724]
[1764006074307,0.23557341,88137.0,88136.0,0.00724]
[1764006074655,0.22952341,88137.0,88136.0,0.01702]
[1764006076798,0.22952341,88137.0,88126.0,3.73910482]
[1764006076799,0.2269452,88127.0,88126.0,3.73910482]
[1764006076999,0.2278452,88127.0,88126.0,3.73910482]
[1764006077240,0.22844024,88127.0,88126.0,3.80243482]
[1764006077547,0.22844024,88127.0,88126.0,3.90288482]
[1764006077781,0.22844024,88127.0,88126.0,3.81221482]
[1764006077967,0.22944024,88127.0,88126.0,3.81221482]
[1764006078573,0.23044024,88127.0,88126.0,3.81221482]
[1764006078772,0.22944024,88127.0,88126.0,3.81221482]
[1764006078972,0.22844024,88127.0,88126.0,3.81221482]
[1764006079178,0.22944024,88127.0,88126.0,3.81221482]
[1764006079515,0.22944024,88127.0,88126.0,3.74888482]
[1764006080846,0.22944024,88127.0,88126.0,3.75612482]
[1764006081042,0.22944024,88127.0,88126.0,3.91012482]
[1764006081461,0.27640024,88127.0,88126.0,3.75612482]
[1764006081695,0.28085024,88127.0,88126.0,3.73910482]
[1764006082103,0.37108024,88127.0,88126.0,3.74634482]
[1764006082309,0.00249504,88127.0,88126.0,3.91012482]
[1764006082530,0.22944024,88127.0,88126.0,3.91012482]
[1764006082732,0.00249504,88127.0,88126.0,3.91012482]
[1764006083687,0.22944024,88127.0,88126.0,3.91012482]
[1764006083882,0.00249504,88127.0,88126.0,3.91012482]
[1764006084085,0.22944024,88127.0,88126.0,3.81945482]
[1764006084285,0.22944024,88127.0,88126.0,3.91012482]
[1764006084286,0.00249504,88127.0,88126.0,3.91012482]
[1764006084665,0.22944024,88127.0,88126.0,3.81945482]
[1764006084865,0.00249504,88127.0,88126.0,3.91012482]
[1764006087566,0.00249504,88127.0,88126.0,3.90288482]
[1764006087768,0.00249504,88127.0,88126.0,3.91012482]
[1764006088432,0.00149504,88127.0,88126.0,3.96540781]
[1764006088629,0.00149504,88127.0,88126.0,3.97264781]
[1764006088978,0.00019845,88127.0,88126.0,4.19959558]
[1764006089091,0.00019845,88127.0,88126.0,4.59235558]
[1764006089292,0.00019845,88127.0,88126.0,4.59959558]
[1764006089732,0.00019845,88127.0,88126.0,4.59335558]
[1764006089890,0.00019845,88127.0,88126.0,4.60059558]
[1764006090504,0.00019845,88127.0,88126.0,4.59335558]
[1764006090730,0.00019845,88127.0,88126.0,4.60059558]
[1764006091407,0.00019845,88127.0,88126.0,4.59959558]
[1764006091755,0.00019845,88127.0,88126.0,4.36640781]
[1764006091958,0.00019845,88127.0,88126.0,4.37364781]
[1764006092199,0.00019845,88127.0,88126.0,4.36640781]
[1764006092398,0.00019845,88127.0,88126.0,4.37364781]
[1764006093432,0.00019845,88127.0,88126.0,4.31112482]
[1764006093630,0.055327,88135.0,88126.0,4.31112482]
[1764006093936,0.06667323,88135.0,88134.0,0.05224]
[1764006094356,0.06667323,88135.0,88134.0,0.05948]
[1764006094499,0.06667323,88135.0,88134.0,0.01702]
[1764006095740,0.22693747,88130.0,88129.0,0.05224]
[1764006095938,0.22693747,88130.0,88129.0,0.00978]
[1764006096507,0.2269452,88127.0,88126.0,3.73910482]
[1764006096751,0.2269452,88127.0,88126.0,3.75612482]
[1764006096963,0.2269452,88127.0,88126.0,3.81945482]
[1764006097170,0.2269452,88127.0,88126.0,3.75612482]
[1764006097633,0.001,88127.0,88126.0,3.81221482]
[1764006097787,0.001,88127.0,88126.0,3.81945482]
[1764006098000,0.001,88127.0,88126.0,3.91012482]
[1764006099659,0.001,88127.0,88126.0,3.74888482]
[1764006099852,0.22694328,88128.0,88126.0,3.74634482]
[1764006100052,0.22694328,88128.0,88127.0,0.01702]
[1764006100444,0.22694328,88128.0,88127.0,0.07311]
[1764006100653,0.22694328,88128.0,88127.0,0.08035]
[1764006101258,0.22794328,88128.0,88127.0,0.08035]
[1764006101518,0.32399328,88128.0,88127.0,0.00978]
[1764006101727,0.32399328,88128.0,88126.0,3.73910482]
[1764006101919,0.13805,88127.0,88126.0,3.73910482]
[1764006102157,0.56822458,88127.0,88126.0,3.73910482]
[1764006102345,0.3712,88127.0,88126.0,3.73910482]
[1764006102632,0.22693844,88131.0,88126.0,3.73910482]
[1764006102633,0.01134648,88133.0,88126.0,3.90034482]
[1764006102802,0.01134648,88133.0,88128.0,0.06333]
[1764006103040,0.23827893,88132.0,88131.0,0.00978]
[1764006104169,0.23927893,88132.0,88131.0,0.00978]
[1764006104497,0.23927893,88132.0,88131.0,0.07423]
[1764006104696,0.001,88132.0,88131.0,0.179]
[1764006104902,0.001,88132.0,88131.0,0.08147]
[1764006105106,0.001,88132.0,88131.0,0.00978]
[1764006105317,0.001,88132.0,88131.0,0.01702]
[1764006105721,0.001,88132.0,88131.0,0.00978]
[1764006105963,0.09116,88132.0,88131.0,0.00978]
[1764006106166,0.22693032,88133.0,88131.0,0.00978]
[1764006106367,0.22693747,88130.0,88129.0,0.01702]
[1764006106723,0.23828144,88132.0,88131.0,0.00978]
[1764006106927,0.23928144,88132.0,88131.0,0.00978]
[1764006107127,0.2269452,88127.0,88126.0,3.73910482]
[1764006107409,0.2269452,88127.0,88126.0,3.74888482]
[1764006107619,0.22693348,88133.0,88126.0,3.74888482]
[1764006107620,0.001,88130.0,88129.0,0.00978]
[1764006107842,0.2269452,88127.0,88126.0,3.73910482]
[1764006108081,0.2269452,88127.0,88126.0,3.74888482]
[1764006109004,2.74319949,88127.0,88126.0,0.84415769]
[1764006109154,2.80043949,88127.0,88126.0,0.48856388]
[1764006109363,2.94980233,88127.0,88126.0,0.13603443]
[1764006109568,2.94980233,88127.0,88062.0,0.04292]
[1764006109569,0.01135486,88068.0,88065.0,0.00773257]
[1764006109819,0.0063266,88070.0,88069.0,0.00978]
[1764006110021,0.23341868,88070.0,88069.0,0.00978]
[1764006110322,0.0076766,88070.0,88069.0,0.00978]
[1764006110685,0.0063266,88070.0,88069.0,0.00978]
[1764006111287,0.0067866,88070.0,88069.0,0.00978]
[1764006111490,0.22709982,88067.0,88065.0,0.00989637]
[1764006111702,0.09522,88066.0,88065.0,0.00011637]
[1764006111897,0.41822,88066.0,88065.0,0.00011637]
[1764006112175,2.46250924,88066.0,88065.0,0.00011637]
[1764006112384,0.46250924,88066.0,88065.0,0.00011637]
[1764006112590,0.0063266,88070.0,88069.0,0.00978]
[1764006112744,0.0063266,88070.0,88069.0,0.19632946]
[1764006113154,0.0063266,88070.0,88069.0,0.26868139]
[1764006113356,0.0063266,88070.0,88069.0,0.24597193]
[1764006113536,0.0063266,88070.0,88069.0,0.26868139]
[1764006114195,0.0063266,88070.0,88069.0,0.66968139]
[1764006114357,0.0063266,88070.0,88069.0,0.64797193]
[1764006114557,0.0063266,88070.0,88069.0,0.17562]
[1764006114874,0.0063266,88070.0,88069.0,0.18286]
[1764006115285,0.0063266,88070.0,88069.0,0.18186]
[1764006115464,0.00596551,88070.0,88069.0,0.20456946]
[1764006115657,0.00596551,88070.0,88069.0,0.083]
[1764006115862,0.00596551,88070.0,88069.0,0.07476]
[1764006116191,0.00596551,88070.0,88069.0,0.09377964]
[1764006116842,0.00596551,88070.0,88069.0,0.00978]
[1764006118298,0.09698551,88070.0,88069.0,0.00978]
[1764006118491,0.01823011,88070.0,88069.0,0.00978]
[1764006118709,0.23396759,88070.0,88069.0,0.00978]
[1764006119155,0.2271024,88066.0,88065.0,0.00011637]
[1764006119386,0.00596551,88070.0,88065.0,0.00011637]
[1764006119585,0.01732011,88070.0,88069.0,0.00978]
[1764006119852,0.01832011,88070.0,88069.0,0.00978]
[1764006120043,0.01732011,88070.0,88069.0,0.00978]
[1764006120346,0.23305759,88070.0,88069.0,0.00978]
[1764006120547,0.2271024,88066.0,88065.0,0.00011637]
[1764006120723,0.2280024,88066.0,88065.0,0.00011637]
[1764006120888,0.3181224,88066.0,88065.0,0.00011637]
[1764006121086,0.6411224,88066.0,88065.0,0.00011637]
[1764006121588,0.6654357,88066.0,88065.0,0.00011637]
[1764006121788,2.6654357,88066.0,88065.0,0.00011637]
[1764006121963,2.69936861,88066.0,88065.0,0.00011637]
[1764006122163,0.6726757,88066.0,88065.0,0.00011637]
[1764006122823,0.6411224,88066.0,88065.0,0.00011637]
[1764006123029,0.6483624,88066.0,88065.0,0.00011637]
[1764006123264,0.01135447,88071.0,88065.0,0.16395637]
[1764006123481,0.001,88066.0,88065.0,0.10279086]
[1764006123797,0.002,88066.0,88065.0,0.00978]
[1764006124154,0.01135499,88067.0,88064.0,0.00724]
[1764006124494,0.01135499,88067.0,88066.0,0.00978]
[1764006124641,0.23845481,88067.0,88066.0,0.00978]
[1764006125494,0.22709237,88070.0,88066.0,0.00600564]
[1764006125727,0.01135447,88071.0,88067.0,0.06498]
[1764006125918,0.0113537,88077.0,88072.0,0.00978]
[1764006125919,0.23843987,88073.0,88072.0,0.00978]
[1764006126117,0.01135421,88073.0,88072.0,0.00978]
[1764006126277,0.323,88081.0,88072.0,0.00978]
[1764006126483,0.01135254,88086.0,88085.0,0.00978]
[1764006126682,0.56140606,88086.0,88085.0,0.00978]
[1764006127240,0.65822606,88086.0,88085.0,0.00978]
[1764006127539,0.56345606,88086.0,88085.0,0.00978]
[1764006128031,0.56545606,88086.0,88085.0,0.00978]
[1764006128260,0.2270663,88080.0,88066.0,0.00600564]
[1764006128426,0.2270663,88080.0,88064.0,0.00011637]
[1764006128427,0.22710497,88065.0,88064.0,0.00989637]
[1764006128603,0.22710497,88065.0,88064.0,0.01717637]
[1764006128811,0.01135434,88072.0,88064.0,0.07838601]
[1764006129010,0.22707579,88077.0,88074.0,0.00978]
[1764006129354,0.23843314,88075.0,88074.0,0.00978]
[1764006129515,0.002,88086.0,88064.0,0.33937257]
[1764006129719,0.55005454,88085.0,88065.0,0.09886]
[1764006129922,0.55005454,88085.0,88064.0,0.00011637]
[1764006129923,0.32505,88065.0,88064.0,0.00011637]
[1764006130125,0.2384577,88067.0,88064.0,0.00011637]
[1764006130330,0.22710307,88066.0,88065.0,0.00978]
[1764006130530,0.0113546,88070.0,88064.0,0.00011637]
[1764006130732,0.0113546,88070.0,88069.0,0.00978]
[1764006130956,0.01135434,88072.0,88069.0,0.01815564]
[1764006131218,0.323,88073.0,88072.0,0.00978]
[1764006131611,0.55008608,88073.0,88072.0,0.00978]
[1764006132730,0.22709208,88070.0,88069.0,0.00728]
[1764006132931,0.22709208,88070.0,88069.0,0.01706]
[1764006133926,0.09448,88080.0,88069.0,0.01706]
[1764006133927,0.03039549,88087.0,88069.0,0.16616]
[1764006134135,0.23839858,88088.0,88087.0,0.00978]
[1764006134391,0.23839858,88088.0,88087.0,0.01706]
[1764006134609,0.01135202,88090.0,88089.0,0.00978]
[1764006134743,0.2383928,88090.0,88089.0,0.00978]
[1764006134960,0.22704011,88091.0,88089.0,0.00978]
[1764006135344,0.01135125,88096.0,88089.0,0.00978]
[1764006135345,0.01135086,88099.0,88091.0,0.06079]
[1764006135549,0.01134867,88116.0,88099.0,0.10348]
[1764006135772,0.01134983,88107.0,88100.0,0.115718]
[1764006136011,0.09448,88124.0,88100.0,0.115718]
[1764006136012,0.01134816,88120.0,88100.0,0.115718]
[1764006136272,0.23833843,88110.0,88109.0,0.00978]
[1764006136587,0.23833843,88110.0,88109.0,0.01717637]
[1764006136787,0.22698641,88111.0,88109.0,0.01717637]
[1764006136995,0.23831667,88119.0,88118.0,0.00978]
[1764006137214,0.23831667,88119.0,88118.0,0.01706]
[1764006137844,0.65637667,88119.0,88118.0,0.01706]
[1764006138224,0.22698899,88110.0,88109.0,0.00011637]
[1764006138448,0.22698899,88110.0,88109.0,0.00739637]
[1764006138654,0.22698658,88111.0,88109.0,0.00739637]
[1764006138852,0.22698658,88111.0,88110.0,0.00978]
[1764006139169,0.01134841,88118.0,88116.0,0.00978]
[1764006139331,0.01121199,88118.0,88117.0,0.00978]
[1764006139549,0.2269703,88118.0,88116.0,0.01760564]
[1764006139753,0.2269703,88118.0,88117.0,0.00978]
[1764006140671,0.323,88123.0,88109.0,0.00739637]
[1764006140891,0.22698848,88111.0,88110.0,0.00978]
[1764006141094,0.22698848,88111.0,88110.0,0.01706]
[1764006141526,0.23832576,88115.0,88114.0,0.00978]
[1764006141728,0.23832576,88115.0,88114.0,0.07057]
[1764006141970,0.23832576,88115.0,88114.0,0.00978]
[1764006143931,0.23832576,88115.0,88114.0,0.01706]
[1764006144339,0.30396576,88115.0,88114.0,0.01706]
[1764006144544,0.23832576,88115.0,88114.0,0.00978]
[1764006144756,0.23832576,88115.0,88114.0,0.01706]
[1764006145159,0.23832576,88115.0,88109.0,0.00011637]
[1764006145160,0.01134919,88112.0,88109.0,0.00011637]
[1764006145358,0.59773899,88110.0,88109.0,0.00011637]
[1764006145583,0.6188914,88110.0,88109.0,0.00011637]
[1764006145927,0.69181899,88110.0,88109.0,0.00011637]
[1764006146057,0.54998899,88110.0,88109.0,0.00011637]
[1764006146261,0.54998899,88110.0,88109.0,0.01011637]
[1764006146487,0.55098899,88110.0,88109.0,0.07090637]
[1764006146685,0.001,88110.0,88109.0,0.18662401]
[1764006147671,0.22698876,88111.0,88110.0,0.01]
[1764006147866,0.22698876,88111.0,88110.0,0.07079]
[1764006148263,0.22698876,88111.0,88110.0,0.01]
[1764006148665,0.22698876,88111.0,88109.0,0.00011637]
[1764006148666,0.323,88110.0,88109.0,0.00011637]
[1764006148885,0.52038429,88110.0,88109.0,0.00011637]
[1764006150325,0.52038429,88110.0,88109.0,1e-08]
[1764006150560,0.54153892,88110.0,88109.0,1e-08]
[1764006150730,0.62485273,88110.0,88109.0,1e-08]
[1764006151141,2.68737674,88110.0,88109.0,1e-08]
[1764006151312,2.60406293,88110.0,88109.0,1e-08]
[1764006151532,0.00999999,88100.0,88060.0,0.03707]
[1764006151702,0.00999999,88100.0,88052.0,0.09809]
[1764006151703,0.6631795,88071.0,88070.0,0.00011647]
[1764006152099,0.6925395,88071.0,88070.0,0.00011647]
[1764006152984,0.5975395,88071.0,88070.0,0.01011647]
[1764006153338,0.6918895,88071.0,88070.0,0.00011647]
[1764006154475,0.5975395,88071.0,88070.0,0.00011647]
[1764006154647,0.5975395,88071.0,88070.0,0.01011647]
[1764006155016,0.6928995,88071.0,88070.0,0.00011647]
[1764006156682,0.22716946,88040.0,88039.0,0.04707]
[1764006156907,0.2272862,88040.0,88039.0,0.05435]
[1764006157722,0.2272862,88040.0,88039.0,0.05535]
[1764006157923,0.00011674,88040.0,88039.0,0.21523]
[1764006158245,0.00011674,88040.0,88039.0,0.137663]
[1764006158446,0.00011674,88040.0,88039.0,0.235753]
[1764006158624,0.00011674,88040.0,88039.0,0.236753]
[1764006159212,0.00011674,88040.0,88039.0,0.138663]
[1764006159519,0.00011674,88040.0,88039.0,0.10986]
[1764006159873,0.00011674,88040.0,88039.0,0.21523]
[1764006161745,0.00011674,88040.0,88039.0,0.30047019]
[1764006161891,0.00011674,88040.0,88039.0,0.27775299]
[1764006162297,0.00011674,88040.0,88039.0,0.67775299]
[1764006162463,0.00011674,88040.0,88039.0,0.7929743]
[1764006162898,0.00011674,88040.0,88039.0,0.7919743]
[1764006163301,0.00011674,88040.0,88039.0,0.7929743]
[1764006163556,0.00011674,88040.0,88039.0,0.7919743]
[1764006163736,0.01135421,88073.0,88050.0,0.01135718]
[1764006163985,0.0113546,88070.0,88062.0,0.22711106]
[1764006164226,0.23844753,88070.0,88069.0,0.01]
[1764006165881,0.23844753,88070.0,88052.0,0.22713684]
[1764006165882,0.41538,88070.0,88038.0,0.03707]
[1764006166089,0.01135705,88051.0,88038.0,0.04435]
[1764006166311,0.01135718,88050.0,88049.0,0.01]
[1764006166804,0.2271415,88051.0,88049.0,0.06644]
[1764006167002,0.2384412,88052.0,88051.0,0.07078]
[1764006167206,0.2384412,88052.0,88051.0,0.01]
[1764006167429,0.2384412,88052.0,88051.0,0.16128]
[1764006167584,0.22713898,88052.0,88051.0,0.16128]
[1764006167795,0.01135666,88054.0,88051.0,0.15128]
[1764006167972,0.56149,88054.0,88053.0,0.07078]
[1764006168632,0.56149,88054.0,88053.0,0.01]
[1764006169472,0.23849,88054.0,88053.0,0.01]
[1764006170903,0.23848459,88056.0,88055.0,0.01]
[1764006171125,0.01135615,88058.0,88057.0,0.01]
[1764006171303,0.23847918,88058.0,88057.0,0.026856]
[1764006171642,0.23847918,88058.0,88057.0,0.01]
[1764006171843,0.323,88065.0,88057.0,0.16128]
[1764006172053,0.22710497,88065.0,88064.0,0.01]
[1764006172269,0.55010497,88065.0,88064.0,0.01728]
[1764006172596,0.22710497,88065.0,88064.0,0.01728]
[1764006173007,0.0113546,88070.0,88064.0,0.164551]
[1764006173330,0.23844668,88070.0,88069.0,0.01]
[1764006175240,0.01135705,88051.0,88048.0,0.04263]
[1764006175439,0.01135602,88059.0,88048.0,0.04263]
[1764006175440,0.01135602,88059.0,88058.0,0.01]
[1764006175639,0.23847741,88059.0,88058.0,0.01]
[1764006176092,0.23847741,88059.0,88058.0,0.07806]
[1764006176264,0.01135524,88065.0,88061.0,0.01]
[1764006176530,0.23846292,88064.0,88063.0,0.01]
[1764006177336,0.22710321,88066.0,88063.0,0.07078]
[1764006177337,0.01135512,88066.0,88063.0,0.07078]
[1764006177536,0.00014836,88065.0,88064.0,0.1005]
[1764006178075,0.00014836,88065.0,88064.0,0.16128]
[1764006178276,0.23845337,88068.0,88066.0,0.01]